[Event "Titled Tuesday Blitz June 15 2021"]
[White "Stribuk, Artiom"]
[Black "Cunjalo, Faris"]
[WhiteFideId "13515659"]
[BlackFideId "14410710"]
[WhiteElo "2177"]
[BlackElo "2234"]
[Result "0-1"]
[Round "07"]
[TimeControl "180+1"]
[Date "2021.06.15"]
[WhiteClock "0:00:02"]
[BlackClock "0:00:03"]

1. d4 {[%clk 0:03:00]}  Nf6 {[%clk 0:02:59]} 2. c4 {[%clk 0:02:57]}  g6 {[%clk 0:02:57]} 3. g3 {[%clk 0:02:56]}  Bg7 {[%clk 0:02:53]} 4. Bg2 {[%clk 0:02:57]}  c5 {[%clk 0:02:52]} 5. d5 {[%clk 0:02:53]}  O-O {[%clk 0:02:52]} 6. Nc3 {[%clk 0:02:53]}  e6 {[%clk 0:02:52]} 7. Nf3 {[%clk 0:02:53]}  exd5 {[%clk 0:02:51]} 8. cxd5 {[%clk 0:02:54]}  Re8 {[%clk 0:02:51]} 9. Nd2 {[%clk 0:02:42]}  d6 {[%clk 0:02:37]} 10. O-O {[%clk 0:02:41]}  Nbd7 {[%clk 0:02:28]} 11. a4 {[%clk 0:02:24]}  a6 {[%clk 0:02:10]} 12. Nc4 {[%clk 0:02:20]}  Nb6 {[%clk 0:02:10]} 13. Na3 {[%clk 0:02:16]}  Nh5 {[%clk 0:01:42]} 14. e4 {[%clk 0:01:46]}  Nd7 {[%clk 0:01:35]} 15. h3 {[%clk 0:01:26]}  Rb8 {[%clk 0:01:26]} 16. a5 {[%clk 0:01:06]}  Qxa5 {[%clk 0:01:10]} 17. g4 {[%clk 0:01:06]}  Nhf6 {[%clk 0:01:10]} 18. Bf4 {[%clk 0:01:06]}  Ne5 {[%clk 0:00:57]} 19. Bxe5 {[%clk 0:00:58]}  dxe5 {[%clk 0:00:57]} 20. Nc4 {[%clk 0:00:57]}  Qd8 {[%clk 0:00:56]} 21. f4 {[%clk 0:00:51]}  exf4 {[%clk 0:00:46]} 22. e5 {[%clk 0:00:45]}  Nd7 {[%clk 0:00:46]} 23. e6 {[%clk 0:00:41]}  Bd4+ {[%clk 0:00:46]} 24. Kh1 {[%clk 0:00:38]}  fxe6 {[%clk 0:00:46]} 25. dxe6 {[%clk 0:00:38]}  Nf6 {[%clk 0:00:46]} 26. g5 {[%clk 0:00:27]}  Bxe6 {[%clk 0:00:42]} 27. gxf6 {[%clk 0:00:26]}  Bxc4 {[%clk 0:00:42]} 28. Rxf4 {[%clk 0:00:27]}  Bf7 {[%clk 0:00:39]} 29. Qf3 {[%clk 0:00:26]}  Re3 {[%clk 0:00:29]} 30. Qg4 {[%clk 0:00:22]}  Qc8 {[%clk 0:00:24]} 31. Qh4 {[%clk 0:00:19]}  Qf8 {[%clk 0:00:15]} 32. Ne4 {[%clk 0:00:19]}  Re8 {[%clk 0:00:10]} 33. Ng5 {[%clk 0:00:17]}  h6 {[%clk 0:00:08]} 34. Nxf7 {[%clk 0:00:17]}  Qxf7 {[%clk 0:00:08]} 35. Qxh6 {[%clk 0:00:18]}  Re1+ {[%clk 0:00:09]} 36. Rxe1 {[%clk 0:00:17]}  Rxe1+ {[%clk 0:00:10]} 37. Bf1 {[%clk 0:00:08]}  Be3 {[%clk 0:00:09]} 38. Kg2 {[%clk 0:00:04]}  Bxf4 {[%clk 0:00:07]} 39. Qxf4 {[%clk 0:00:05]}  b5 {[%clk 0:00:03]} 40. h4 {[%clk 0:00:01]}  Re6 {[%clk 0:00:03]} 41. h5 {[%clk 0:00:01]}  Rxf6 {[%clk 0:00:02]} 42. Qb8+ {[%clk 0:00:02]}  Qf8 {[%clk 0:00:02]} 43. Qc7 {[%clk 0:00:01]}  Rxf1 {[%clk 0:00:02]} 44. hxg6 {[%clk 0:00:02]}  Qf3+ {[%clk 0:00:02]} 45. Kh2 {[%clk 0:00:02]}  Rh1# {[%clk 0:00:03]} 0-1


[Site "https://www.chess.com"]

[Event "Titled Tuesday Blitz June 15 2021"]
[White "Suvorov, Alexander"]
[Black "Shahaliyev, Ismayil"]
[WhiteFideId "12977063"]
[BlackFideId "13406388"]
[WhiteElo "2221"]
[BlackElo "2105"]
[Result "0-1"]
[Round "07"]
[TimeControl "180+1"]
[Date "2021.06.15"]
[WhiteClock "0:00:36"]
[BlackClock "0:01:16"]

1. d4 {[%clk 0:03:00]}  Nf6 {[%clk 0:03:00]} 2. c4 {[%clk 0:02:59]}  c6 {[%clk 0:02:59]} 3. Nc3 {[%clk 0:02:59]}  d5 {[%clk 0:02:59]} 4. e3 {[%clk 0:02:59]}  e6 {[%clk 0:02:56]} 5. Nf3 {[%clk 0:02:59]}  Nbd7 {[%clk 0:02:55]} 6. Qc2 {[%clk 0:02:59]}  Bd6 {[%clk 0:02:54]} 7. Bd3 {[%clk 0:02:59]}  dxc4 {[%clk 0:02:54]} 8. Bxc4 {[%clk 0:03:00]}  b5 {[%clk 0:02:54]} 9. Be2 {[%clk 0:02:59]}  Bb7 {[%clk 0:02:54]} 10. O-O {[%clk 0:02:59]}  O-O {[%clk 0:02:49]} 11. e4 {[%clk 0:02:57]}  e5 {[%clk 0:02:49]} 12. Rd1 {[%clk 0:02:57]}  Qb8 {[%clk 0:02:44]} 13. dxe5 {[%clk 0:02:47]}  Nxe5 {[%clk 0:02:44]} 14. Nd4 {[%clk 0:02:47]}  b4 {[%clk 0:02:24]} 15. Nf5 {[%clk 0:02:41]}  Bc7 {[%clk 0:02:08]} 16. Na4 {[%clk 0:02:37]}  Re8 {[%clk 0:01:49]} 17. Nc5 {[%clk 0:02:28]}  Bc8 {[%clk 0:01:47]} 18. g3 {[%clk 0:01:59]}  Bxf5 {[%clk 0:01:36]} 19. exf5 {[%clk 0:02:00]}  Qc8 {[%clk 0:01:28]} 20. Ba6 {[%clk 0:01:39]}  Qb8 {[%clk 0:01:27]} 21. Bb7 {[%clk 0:01:36]}  Nf3+ {[%clk 0:01:20]} 22. Kh1 {[%clk 0:01:22]}  Ng4 {[%clk 0:01:19]} 23. h3 {[%clk 0:01:04]}  Bxg3 {[%clk 0:01:15]} 24. hxg4 {[%clk 0:00:43]}  Bh4 {[%clk 0:01:14]} 25. Kg2 {[%clk 0:00:37]}  Qh2+ {[%clk 0:01:14]} 26. Kxf3 {[%clk 0:00:37]}  Qh3+ {[%clk 0:01:14]} 27. Kf4 {[%clk 0:00:37]}  Bg5+ {[%clk 0:01:15]} 28. Kxg5 {[%clk 0:00:36]}  Qh6# {[%clk 0:01:16]} 0-1


[Site "https://www.chess.com"]

[Event "Titled Tuesday Blitz June 15 2021"]
[White "Timofeev, Artyom"]
[Black "Kamsky, Gata"]
[WhiteFideId "4140419"]
[BlackFideId "2000024"]
[WhiteElo "2582"]
[BlackElo "2644"]
[Result "1/2-1/2"]
[Round "07"]
[TimeControl "180+1"]
[Date "2021.06.15"]
[WhiteClock "0:02:46"]
[BlackClock "0:02:11"]

1. c4 {[%clk 0:03:00]}  c6 {[%clk 0:02:54]} 2. b3 {[%clk 0:02:59]}  d5 {[%clk 0:02:53]} 3. Bb2 {[%clk 0:02:59]}  Nf6 {[%clk 0:02:52]} 4. Nf3 {[%clk 0:02:58]}  Bf5 {[%clk 0:02:51]} 5. Bxf6 {[%clk 0:02:53]}  exf6 {[%clk 0:02:49]} 6. e3 {[%clk 0:02:53]}  Be7 {[%clk 0:02:44]} 7. Nc3 {[%clk 0:02:53]}  dxc4 {[%clk 0:02:27]} 8. Bxc4 {[%clk 0:02:50]}  O-O {[%clk 0:02:25]} 9. O-O {[%clk 0:02:49]}  Nd7 {[%clk 0:02:23]} 10. d4 {[%clk 0:02:48]}  Nb6 {[%clk 0:02:21]} 11. Bd3 {[%clk 0:02:47]}  Bg4 {[%clk 0:02:12]} 12. h3 {[%clk 0:02:46]}  Bxf3 {[%clk 0:02:10]} 13. Qxf3 {[%clk 0:02:46]}  g6 {[%clk 0:02:11]} 1/2-1/2


[Site "https://www.chess.com"]

[Event "Titled Tuesday Blitz June 15 2021"]
[White "Ulziikhishigjargal, Ochirkhuyag"]
[Black "Baradaran, Arman"]
[WhiteFideId "4903188"]
[BlackFideId "880515"]
[WhiteElo "1836"]
[BlackElo "2132"]
[Result "0-1"]
[Round "07"]
[TimeControl "180+1"]
[Date "2021.06.15"]
[WhiteClock "0:00:32"]
[BlackClock "0:00:07"]

1. c4 {[%clk 0:02:58]}  c6 {[%clk 0:02:58]} 2. Nf3 {[%clk 0:02:57]}  d5 {[%clk 0:02:58]} 3. g3 {[%clk 0:02:58]}  Nf6 {[%clk 0:02:59]} 4. Bg2 {[%clk 0:02:59]}  Bg4 {[%clk 0:02:59]} 5. O-O {[%clk 0:03:00]}  Nbd7 {[%clk 0:03:00]} 6. Qb3 {[%clk 0:02:59]}  Qb6 {[%clk 0:02:58]} 7. Nc3 {[%clk 0:02:58]}  e6 {[%clk 0:02:58]} 8. d4 {[%clk 0:02:56]}  Bxf3 {[%clk 0:02:52]} 9. Bxf3 {[%clk 0:02:55]}  Qxd4 {[%clk 0:02:51]} 10. Qxb7 {[%clk 0:02:54]}  Rb8 {[%clk 0:02:49]} 11. Qxc6 {[%clk 0:02:54]}  Qxc4 {[%clk 0:02:48]} 12. Qxc4 {[%clk 0:02:54]}  dxc4 {[%clk 0:02:49]} 13. b3 {[%clk 0:02:48]}  cxb3 {[%clk 0:02:26]} 14. axb3 {[%clk 0:02:47]}  Bc5 {[%clk 0:02:26]} 15. Bf4 {[%clk 0:02:40]}  Rxb3 {[%clk 0:02:21]} 16. Na4 {[%clk 0:02:32]}  Bd4 {[%clk 0:02:12]} 17. Rad1 {[%clk 0:02:29]}  e5 {[%clk 0:02:11]} 18. Bg5 {[%clk 0:02:27]}  h6 {[%clk 0:01:23]} 19. Bxf6 {[%clk 0:02:26]}  Nxf6 {[%clk 0:01:24]} 20. e3 {[%clk 0:02:26]}  Bb6 {[%clk 0:01:24]} 21. Bc6+ {[%clk 0:01:26]}  Ke7 {[%clk 0:01:21]} 22. Ra1 {[%clk 0:01:11]}  Rc8 {[%clk 0:00:46]} 23. Nxb6 {[%clk 0:01:09]}  axb6 {[%clk 0:00:33]} 24. Ra7+ {[%clk 0:01:08]}  Ke6 {[%clk 0:00:29]} 25. Ba4 {[%clk 0:01:06]}  Rb2 {[%clk 0:00:15]} 26. Rd1 {[%clk 0:01:05]}  Rc3 {[%clk 0:00:05]} 27. Bd7+ {[%clk 0:01:03]}  Nxd7 {[%clk 0:00:05]} 28. Rdxd7 {[%clk 0:01:04]}  f6 {[%clk 0:00:04]} 29. Rd1 {[%clk 0:00:52]}  Rcc2 {[%clk 0:00:04]} 30. Rf1 {[%clk 0:00:51]}  g5 {[%clk 0:00:02]} 31. g4 {[%clk 0:00:51]}  e4 {[%clk 0:00:01]} 32. h3 {[%clk 0:00:51]}  b5 {[%clk 0:00:02]} 33. Ra6+ {[%clk 0:00:48]}  Kd5 {[%clk 0:00:02]} 34. Rxf6 {[%clk 0:00:47]}  b4 {[%clk 0:00:03]} 35. Rxh6 {[%clk 0:00:48]}  b3 {[%clk 0:00:03]} 36. Rg6 {[%clk 0:00:47]}  Kc4 {[%clk 0:00:04]} 37. Rxg5 {[%clk 0:00:47]}  Ra2 {[%clk 0:00:04]} 38. Rg8 {[%clk 0:00:46]}  b2 {[%clk 0:00:03]} 39. Rb8 {[%clk 0:00:44]}  Ra1 {[%clk 0:00:01]} 40. Rc8+ {[%clk 0:00:42]}  Kd3 {[%clk 0:00:01]} 41. Rd8+ {[%clk 0:00:43]}  Ke2 {[%clk 0:00:02]} 42. Rb8 {[%clk 0:00:26]}  Rxf1+ {[%clk 0:00:02]} 43. Kg2 {[%clk 0:00:27]}  b1=Q {[%clk 0:00:02]} 44. Rxb1 {[%clk 0:00:27]}  Rxb1 {[%clk 0:00:03]} 45. Kg3 {[%clk 0:00:28]}  Rf1 {[%clk 0:00:03]} 46. g5 {[%clk 0:00:28]}  Rxf2 {[%clk 0:00:04]} 47. h4 {[%clk 0:00:29]}  Rf1 {[%clk 0:00:05]} 48. Kg4 {[%clk 0:00:30]}  Rg1+ {[%clk 0:00:05]} 49. Kh5 {[%clk 0:00:31]}  Kxe3 {[%clk 0:00:06]} 50. g6 {[%clk 0:00:32]}  Rh2 {[%clk 0:00:06]} 51. g7 {[%clk 0:00:30]}  Rxh4+ {[%clk 0:00:06]} 52. Kxh4 {[%clk 0:00:31]}  Rxg7 {[%clk 0:00:07]} 53. Kh5 {[%clk 0:00:31]}  Kf4 {[%clk 0:00:07]} 54. Kh6 {[%clk 0:00:32]} 0-1


[Site "https://www.chess.com"]

[Event "Titled Tuesday Blitz June 15 2021"]
[White "Vallejo Diaz, Javier"]
[Black "Praggnanandhaa R"]
[WhiteFideId "2256398"]
[BlackFideId "25059530"]
[WhiteElo "2689"]
[BlackElo "2555"]
[Result "0-1"]
[Round "07"]
[TimeControl "180+1"]
[Date "2021.06.15"]
[WhiteClock "0:00:36"]
[BlackClock "0:01:26"]

1. e4 {[%clk 0:03:00]}  c5 {[%clk 0:02:57]} 2. Nf3 {[%clk 0:03:00]}  e6 {[%clk 0:02:58]} 3. b3 {[%clk 0:03:00]}  b6 {[%clk 0:02:57]} 4. Bb2 {[%clk 0:03:00]}  Bb7 {[%clk 0:02:58]} 5. d3 {[%clk 0:03:00]}  Nc6 {[%clk 0:02:55]} 6. Nbd2 {[%clk 0:03:00]}  d5 {[%clk 0:02:52]} 7. g3 {[%clk 0:02:58]}  Nf6 {[%clk 0:02:52]} 8. Bg2 {[%clk 0:02:57]}  Be7 {[%clk 0:02:52]} 9. O-O {[%clk 0:02:56]}  O-O {[%clk 0:02:52]} 10. exd5 {[%clk 0:02:55]}  Nxd5 {[%clk 0:02:51]} 11. Nc4 {[%clk 0:02:47]}  Bf6 {[%clk 0:02:47]} 12. Nce5 {[%clk 0:02:42]}  Qc7 {[%clk 0:02:38]} 13. Re1 {[%clk 0:02:38]}  Rfd8 {[%clk 0:02:34]} 14. Qc1 {[%clk 0:02:28]}  Rac8 {[%clk 0:02:23]} 15. Nxc6 {[%clk 0:02:19]}  Bxb2 {[%clk 0:02:20]} 16. Qxb2 {[%clk 0:02:20]}  Bxc6 {[%clk 0:02:19]} 17. Ne5 {[%clk 0:02:19]}  Bb7 {[%clk 0:02:19]} 18. f4 {[%clk 0:02:14]}  Ne7 {[%clk 0:02:18]} 19. Be4 {[%clk 0:01:44]}  Nf5 {[%clk 0:02:13]} 20. c3 {[%clk 0:01:34]}  Nd6 {[%clk 0:02:08]} 21. Bxb7 {[%clk 0:01:32]}  Qxb7 {[%clk 0:02:08]} 22. Qe2 {[%clk 0:01:32]}  Nb5 {[%clk 0:02:04]} 23. Rac1 {[%clk 0:01:27]}  Rd6 {[%clk 0:02:04]} 24. a4 {[%clk 0:01:22]}  Nc7 {[%clk 0:02:03]} 25. Nc4 {[%clk 0:01:17]}  Rdd8 {[%clk 0:01:54]} 26. Qe4 {[%clk 0:01:06]}  Qd5 {[%clk 0:01:52]} 27. Re3 {[%clk 0:00:57]}  Ne8 {[%clk 0:01:48]} 28. Rce1 {[%clk 0:00:51]}  Nf6 {[%clk 0:01:48]} 29. Qe5 {[%clk 0:00:43]}  Qc6 {[%clk 0:01:28]} 30. h3 {[%clk 0:00:36]}  Rd5 {[%clk 0:01:26]} 0-1


[Site "https://www.chess.com"]

[Event "Titled Tuesday Blitz June 15 2021"]
[White "Williams, Simon K"]
[Black "Dolzhykova, Kateryna"]
[WhiteFideId "404454"]
[BlackFideId "14113414"]
[WhiteElo "2468"]
[BlackElo "2151"]
[Result "1-0"]
[Round "07"]
[TimeControl "180+1"]
[Date "2021.06.15"]
[WhiteClock "0:00:53"]
[BlackClock "0:00:03"]

1. f4 {[%clk 0:03:00]}  e5 {[%clk 0:02:59]} 2. e4 {[%clk 0:03:00]}  d6 {[%clk 0:02:50]} 3. Nf3 {[%clk 0:02:57]}  Nc6 {[%clk 0:02:49]} 4. Bc4 {[%clk 0:02:54]}  Be7 {[%clk 0:02:47]} 5. d3 {[%clk 0:02:52]}  Nf6 {[%clk 0:02:46]} 6. O-O {[%clk 0:02:51]}  O-O {[%clk 0:02:47]} 7. Nc3 {[%clk 0:02:51]}  Bg4 {[%clk 0:02:46]} 8. h3 {[%clk 0:02:50]}  Bxf3 {[%clk 0:02:46]} 9. Qxf3 {[%clk 0:02:50]}  Nd4 {[%clk 0:02:47]} 10. Qf2 {[%clk 0:02:49]}  c6 {[%clk 0:02:36]} 11. a3 {[%clk 0:02:25]}  a5 {[%clk 0:01:58]} 12. Ba2 {[%clk 0:02:23]}  b5 {[%clk 0:01:58]} 13. Be3 {[%clk 0:02:18]}  b4 {[%clk 0:01:58]} 14. Nd1 {[%clk 0:02:12]}  b3 {[%clk 0:01:53]} 15. Bxd4 {[%clk 0:02:03]}  bxa2 {[%clk 0:01:53]} 16. Bc3 {[%clk 0:02:02]}  Nd7 {[%clk 0:01:48]} 17. Rxa2 {[%clk 0:01:59]}  d5 {[%clk 0:01:25]} 18. fxe5 {[%clk 0:01:51]}  dxe4 {[%clk 0:01:22]} 19. d4 {[%clk 0:01:47]}  Qb6 {[%clk 0:01:10]} 20. Ne3 {[%clk 0:01:45]}  f6 {[%clk 0:00:35]} 21. e6 {[%clk 0:01:41]}  Nb8 {[%clk 0:00:31]} 22. Nf5 {[%clk 0:01:39]}  Qc7 {[%clk 0:00:31]} 23. Qe3 {[%clk 0:01:30]}  Na6 {[%clk 0:00:31]} 24. Qxe4 {[%clk 0:01:29]}  Rae8 {[%clk 0:00:31]} 25. Raa1 {[%clk 0:01:29]}  Bd6 {[%clk 0:00:28]} 26. Rae1 {[%clk 0:01:27]}  g6 {[%clk 0:00:19]} 27. Ne3 {[%clk 0:01:14]}  Re7 {[%clk 0:00:17]} 28. d5 {[%clk 0:01:13]}  cxd5 {[%clk 0:00:16]} 29. Nxd5 {[%clk 0:01:13]}  Bc5+ {[%clk 0:00:16]} 30. Kh1 {[%clk 0:01:13]}  Qg3 {[%clk 0:00:09]} 31. Rf3 {[%clk 0:01:05]}  Qd6 {[%clk 0:00:03]} 32. Nxf6+ {[%clk 0:01:00]}  Rxf6 {[%clk 0:00:03]} 33. Bxf6 {[%clk 0:01:00]}  Re8 {[%clk 0:00:04]} 34. e7 {[%clk 0:00:59]}  Bb6 {[%clk 0:00:03]} 35. Qc4+ {[%clk 0:00:53]} 1-0


[Site "https://www.chess.com"]

[Event "Titled Tuesday Blitz June 15 2021"]
[White "Zhukov, Anton"]
[Black "Araujo Sanchez, Josue"]
[WhiteFideId "34187534"]
[BlackFideId "6416896"]
[WhiteElo "2104"]
[BlackElo "2140"]
[Result "0-1"]
[Round "07"]
[TimeControl "180+1"]
[Date "2021.06.15"]
[WhiteClock "0:00:10"]
[BlackClock "0:01:30"]

1. d4 {[%clk 0:03:00]}  Nf6 {[%clk 0:02:58]} 2. c4 {[%clk 0:03:01]}  e6 {[%clk 0:02:58]} 3. Nf3 {[%clk 0:03:01]}  b6 {[%clk 0:02:58]} 4. g3 {[%clk 0:03:01]}  Ba6 {[%clk 0:02:58]} 5. Qc2 {[%clk 0:03:01]}  c5 {[%clk 0:02:58]} 6. d5 {[%clk 0:03:01]}  exd5 {[%clk 0:02:58]} 7. cxd5 {[%clk 0:03:02]}  g6 {[%clk 0:02:51]} 8. Nc3 {[%clk 0:02:55]}  Bg7 {[%clk 0:02:51]} 9. Bg2 {[%clk 0:02:55]}  O-O {[%clk 0:02:52]} 10. O-O {[%clk 0:02:55]}  Re8 {[%clk 0:02:53]} 11. Re1 {[%clk 0:02:50]}  d6 {[%clk 0:02:50]} 12. e4 {[%clk 0:02:50]}  b5 {[%clk 0:02:49]} 13. e5 {[%clk 0:02:36]}  dxe5 {[%clk 0:02:37]} 14. Nxe5 {[%clk 0:02:32]}  b4 {[%clk 0:02:33]} 15. d6 {[%clk 0:02:23]}  bxc3 {[%clk 0:02:24]} 16. Bxa8 {[%clk 0:01:23]}  Rxe5 {[%clk 0:02:23]} 17. Rxe5 {[%clk 0:01:20]}  Nbd7 {[%clk 0:02:23]} 18. Re7 {[%clk 0:01:14]}  Qxa8 {[%clk 0:02:23]} 19. Qb3 {[%clk 0:01:13]}  c4 {[%clk 0:02:15]} 20. Qa4 {[%clk 0:01:11]}  Bb7 {[%clk 0:02:00]} 21. Qxc4 {[%clk 0:00:50]}  Bd5 {[%clk 0:01:57]} 22. Qf1 {[%clk 0:00:50]}  Ng4 {[%clk 0:01:44]} 23. bxc3 {[%clk 0:00:40]}  Nge5 {[%clk 0:01:43]} 24. f4 {[%clk 0:00:36]}  Nf3+ {[%clk 0:01:38]} 25. Kf2 {[%clk 0:00:37]}  Nf6 {[%clk 0:01:37]} 26. h3 {[%clk 0:00:28]}  Qc6 {[%clk 0:01:35]} 27. Be3 {[%clk 0:00:21]}  Qxd6 {[%clk 0:01:35]} 28. Rxa7 {[%clk 0:00:19]}  Qe6 {[%clk 0:01:35]} 29. Qb5 {[%clk 0:00:18]}  Ne4+ {[%clk 0:01:33]} 30. Kf1 {[%clk 0:00:12]}  Qxh3+ {[%clk 0:01:30]} 31. Ke2 {[%clk 0:00:10]}  Nxc3+ {[%clk 0:01:30]} 0-1


[Site "https://www.chess.com"]

[Event "Titled Tuesday Blitz June 15 2021"]
[White "Aditya Mittal"]
[Black "Chernomordik, Pavel"]
[WhiteFideId "35042025"]
[BlackFideId "2804530"]
[WhiteElo "2171"]
[BlackElo "2299"]
[Result "0-1"]
[Round "08"]
[TimeControl "180+1"]
[Date "2021.06.15"]
[WhiteClock "0:00:03"]
[BlackClock "0:00:16"]

1. d4 {[%clk 0:03:00]}  g6 {[%clk 0:02:59]} 2. c4 {[%clk 0:02:56]}  Bg7 {[%clk 0:02:59]} 3. e4 {[%clk 0:02:57]}  Nc6 {[%clk 0:02:58]} 4. Nf3 {[%clk 0:02:55]}  d6 {[%clk 0:02:57]} 5. d5 {[%clk 0:02:50]}  Ne5 {[%clk 0:02:57]} 6. Nxe5 {[%clk 0:02:44]}  Bxe5 {[%clk 0:02:56]} 7. Nd2 {[%clk 0:02:45]}  c6 {[%clk 0:02:55]} 8. Nf3 {[%clk 0:02:45]}  Bg7 {[%clk 0:02:55]} 9. Be2 {[%clk 0:02:41]}  Nf6 {[%clk 0:02:53]} 10. Qd3 {[%clk 0:02:35]}  O-O {[%clk 0:02:52]} 11. O-O {[%clk 0:02:34]}  Bg4 {[%clk 0:02:46]} 12. Be3 {[%clk 0:02:25]}  Nd7 {[%clk 0:02:44]} 13. Rab1 {[%clk 0:02:19]}  c5 {[%clk 0:02:27]} 14. a3 {[%clk 0:02:09]}  a6 {[%clk 0:02:24]} 15. Rfc1 {[%clk 0:02:03]}  Rc8 {[%clk 0:02:08]} 16. b4 {[%clk 0:01:58]}  Bxf3 {[%clk 0:01:59]} 17. Bxf3 {[%clk 0:01:56]}  Ne5 {[%clk 0:01:55]} 18. Qe2 {[%clk 0:01:55]}  b5 {[%clk 0:01:16]} 19. bxc5 {[%clk 0:01:31]}  Nxc4 {[%clk 0:01:05]} 20. c6 {[%clk 0:01:28]}  Nxa3 {[%clk 0:01:01]} 21. Rb3 {[%clk 0:01:15]}  Nc4 {[%clk 0:01:00]} 22. h4 {[%clk 0:00:56]}  e6 {[%clk 0:00:58]} 23. Rxc4 {[%clk 0:00:46]}  bxc4 {[%clk 0:00:56]} 24. Qxc4 {[%clk 0:00:47]}  exd5 {[%clk 0:00:47]} 25. exd5 {[%clk 0:00:46]}  Qa5 {[%clk 0:00:45]} 26. g3 {[%clk 0:00:43]}  Qe1+ {[%clk 0:00:40]} 27. Kg2 {[%clk 0:00:43]}  a5 {[%clk 0:00:39]} 28. Bg4 {[%clk 0:00:40]}  f5 {[%clk 0:00:34]} 29. Bf3 {[%clk 0:00:36]}  Be5 {[%clk 0:00:31]} 30. Rb7 {[%clk 0:00:35]}  Rf7 {[%clk 0:00:30]} 31. Qa6 {[%clk 0:00:32]}  Rcf8 {[%clk 0:00:21]} 32. Rxf7 {[%clk 0:00:16]}  Rxf7 {[%clk 0:00:21]} 33. Bh6 {[%clk 0:00:13]}  Bg7 {[%clk 0:00:19]} 34. Bf4 {[%clk 0:00:08]}  Bd4 {[%clk 0:00:18]} 35. Bh6 {[%clk 0:00:03]}  Qxf2+ {[%clk 0:00:18]} 36. Kh3 {[%clk 0:00:03]}  Qf1+ {[%clk 0:00:17]} 37. Bg2 {[%clk 0:00:03]}  Qxa6 {[%clk 0:00:16]} 0-1


[Site "https://www.chess.com"]

[Event "Titled Tuesday Blitz June 15 2021"]
[White "Aitbayev, Aslan"]
[Black "Alavkin, Arseny"]
[WhiteFideId "13704613"]
[BlackFideId "4120612"]
[WhiteElo "2417"]
[BlackElo "2401"]
[Result "0-1"]
[Round "08"]
[TimeControl "180+1"]
[Date "2021.06.15"]
[WhiteClock "0:00:05"]
[BlackClock "0:01:27"]

1. e4 {[%clk 0:03:00]}  e6 {[%clk 0:02:48]} 2. d4 {[%clk 0:03:00]}  d5 {[%clk 0:02:48]} 3. e5 {[%clk 0:03:00]}  c5 {[%clk 0:02:47]} 4. c3 {[%clk 0:03:00]}  Nc6 {[%clk 0:02:48]} 5. Nf3 {[%clk 0:03:00]}  Bd7 {[%clk 0:02:48]} 6. Bd3 {[%clk 0:02:59]}  Qb6 {[%clk 0:02:46]} 7. O-O {[%clk 0:02:56]}  cxd4 {[%clk 0:02:46]} 8. Re1 {[%clk 0:02:57]}  a6 {[%clk 0:02:43]} 9. Nbd2 {[%clk 0:02:51]}  dxc3 {[%clk 0:02:42]} 10. bxc3 {[%clk 0:02:52]}  Nge7 {[%clk 0:02:43]} 11. Nb3 {[%clk 0:02:47]}  Ng6 {[%clk 0:02:42]} 12. h4 {[%clk 0:02:45]}  Qc7 {[%clk 0:02:40]} 13. Qe2 {[%clk 0:02:45]}  Nge7 {[%clk 0:02:33]} 14. Ba3 {[%clk 0:02:28]}  Nf5 {[%clk 0:02:31]} 15. Bxf8 {[%clk 0:02:23]}  Rxf8 {[%clk 0:02:32]} 16. Bxf5 {[%clk 0:02:19]}  exf5 {[%clk 0:02:33]} 17. Nc5 {[%clk 0:02:06]}  Be6 {[%clk 0:02:24]} 18. Rab1 {[%clk 0:02:04]}  Rb8 {[%clk 0:02:23]} 19. Ng5 {[%clk 0:01:31]}  Nd8 {[%clk 0:02:12]} 20. Qe3 {[%clk 0:01:14]}  h6 {[%clk 0:02:08]} 21. Nf3 {[%clk 0:01:12]}  Ke7 {[%clk 0:02:05]} 22. Rb2 {[%clk 0:01:09]}  Rc8 {[%clk 0:01:59]} 23. Nd3 {[%clk 0:00:49]}  Re8 {[%clk 0:01:51]} 24. Nd4 {[%clk 0:00:39]}  Kf8 {[%clk 0:01:50]} 25. Rc1 {[%clk 0:00:25]}  Kg8 {[%clk 0:01:46]} 26. h5 {[%clk 0:00:22]}  Bd7 {[%clk 0:01:43]} 27. Qf3 {[%clk 0:00:20]}  Nc6 {[%clk 0:01:37]} 28. Qxd5 {[%clk 0:00:15]}  Rcd8 {[%clk 0:01:34]} 29. Qd6 {[%clk 0:00:11]}  Qxd6 {[%clk 0:01:31]} 30. exd6 {[%clk 0:00:11]}  Nxd4 {[%clk 0:01:32]} 31. cxd4 {[%clk 0:00:12]}  Bc6 {[%clk 0:01:33]} 32. Ne5 {[%clk 0:00:11]}  Rxd6 {[%clk 0:01:31]} 33. Nxc6 {[%clk 0:00:11]}  bxc6 {[%clk 0:01:30]} 34. Rb4 {[%clk 0:00:11]}  Re4 {[%clk 0:01:25]} 35. f3 {[%clk 0:00:10]}  Rexd4 {[%clk 0:01:24]} 36. Rxd4 {[%clk 0:00:11]}  Rxd4 {[%clk 0:01:25]} 37. Rxc6 {[%clk 0:00:12]}  Ra4 {[%clk 0:01:26]} 38. Rc2 {[%clk 0:00:11]}  g6 {[%clk 0:01:26]} 39. hxg6 {[%clk 0:00:11]}  fxg6 {[%clk 0:01:27]} 40. Kh2 {[%clk 0:00:11]}  Kg7 {[%clk 0:01:27]} 41. Kg3 {[%clk 0:00:11]}  Kf6 {[%clk 0:01:27]} 42. Rb2 {[%clk 0:00:11]}  Kg5 {[%clk 0:01:27]} 43. Rd2 {[%clk 0:00:10]}  h5 {[%clk 0:01:27]} 44. Kf2 {[%clk 0:00:10]}  h4 {[%clk 0:01:27]} 45. Rc2 {[%clk 0:00:11]}  Kf4 {[%clk 0:01:27]} 46. Rb2 {[%clk 0:00:11]}  g5 {[%clk 0:01:28]} 47. Rc2 {[%clk 0:00:11]}  g4 {[%clk 0:01:28]} 48. fxg4 {[%clk 0:00:12]}  fxg4 {[%clk 0:01:29]} 49. g3+ {[%clk 0:00:13]}  hxg3+ {[%clk 0:01:29]} 50. Kg2 {[%clk 0:00:14]}  a5 {[%clk 0:01:27]} 51. Rb2 {[%clk 0:00:14]}  Rb4 {[%clk 0:01:27]} 52. Rd2 {[%clk 0:00:12]}  a4 {[%clk 0:01:27]} 53. a3 {[%clk 0:00:12]}  Rc4 {[%clk 0:01:26]} 54. Re2 {[%clk 0:00:12]}  Rc3 {[%clk 0:01:25]} 55. Re8 {[%clk 0:00:11]}  Rxa3 {[%clk 0:01:25]} 56. Rf8+ {[%clk 0:00:11]}  Ke3 {[%clk 0:01:25]} 57. Rd8 {[%clk 0:00:10]}  Rd3 {[%clk 0:01:24]} 58. Re8+ {[%clk 0:00:09]}  Kd2 {[%clk 0:01:24]} 59. Ra8 {[%clk 0:00:10]}  a3 {[%clk 0:01:24]} 60. Rc8 {[%clk 0:00:09]}  Rc3 {[%clk 0:01:24]} 61. Ra8 {[%clk 0:00:09]}  Kc2 {[%clk 0:01:25]} 62. Ra7 {[%clk 0:00:08]}  Kb2 {[%clk 0:01:25]} 63. Rb7+ {[%clk 0:00:08]}  Rb3 {[%clk 0:01:25]} 64. Re7 {[%clk 0:00:08]}  a2 {[%clk 0:01:25]} 65. Re2+ {[%clk 0:00:08]}  Ka3 {[%clk 0:01:25]} 66. Re1 {[%clk 0:00:06]}  Rb1 {[%clk 0:01:26]} 67. Re3+ {[%clk 0:00:06]}  Kb4 {[%clk 0:01:26]} 68. Re4+ {[%clk 0:00:07]}  Kc5 {[%clk 0:01:26]} 69. Re5+ {[%clk 0:00:06]}  Kd4 {[%clk 0:01:26]} 70. Rf5 {[%clk 0:00:06]}  a1=Q {[%clk 0:01:27]} 71. Rf4+ {[%clk 0:00:06]}  Ke5 {[%clk 0:01:27]} 72. Rf1 {[%clk 0:00:05]}  Rxf1 {[%clk 0:01:27]} 0-1


[Site "https://www.chess.com"]